fUSD/lending_fUSD_20250926
["ID","MTS","AMOUNT","RATE_DAILY","PERIOD"]
[387829950,1758901846161,-150.0,0.00019999,2]
[387829951,1758901846171,-500.0,0.00019999,2]
[387829953,1758901846181,-150.0,0.00019999,2]
[387829954,1758901846191,-500.0,0.00019999,2]
[387829955,1758901846202,-500.0,0.00019999,2]
[387829956,1758901846213,-150.0,0.00019999,2]
[387829957,1758901846222,-150.0,0.00019999,2]
[387829958,1758901846232,-151.71201299,0.00019999,2]
[387829959,1758901846242,-150.0,0.00019999,2]
[387829960,1758901846251,-150.0,0.00019999,2]
[387829961,1758901846261,-150.0,0.00019999,2]
[387829962,1758901846271,-150.0,0.00019999,2]
[387829963,1758901846282,-150.80091383,0.00019999,2]
[387829964,1758901846292,-150.0,0.00019999,2]
[387829965,1758901846302,-150.0,0.00019999,2]
[387829966,1758901846314,-500.0,0.00019999,2]
[387829967,1758901846324,-150.0,0.00019999,2]
[387829969,1758901846334,-150.0,0.00019999,2]
[387829970,1758901846343,-150.0,0.00019999,2]
[387829971,1758901846352,-150.0,0.00019999,2]
[387829972,1758901846361,-150.0,0.00019999,2]
[387829973,1758901846371,-150.0,0.00019999,2]
[387829974,1758901846380,-500.0,0.00019999,2]
[387829975,1758901846390,-500.0,0.00019999,2]
[387829976,1758901846399,-150.0,0.00019999,2]
[387829977,1758901846409,-500.0,0.00019999,2]
[387829978,1758901846419,-1120.0,0.00019999,2]
[387829979,1758901846428,-150.0,0.00019999,2]
[387829980,1758901846437,-500.0,0.00019999,2]
[387829981,1758901846447,-274.54027788,0.00019999,2]
[387829982,1758901846457,-150.0,0.00019999,2]
[387829983,1758901846466,-150.0,0.00019999,2]
[387829984,1758901846476,-500.0,0.00019999,2]
[387829985,1758901846485,-252.20583273,0.00019999,2]
[387829986,1758901846494,-250.0,0.00019999,2]
[387829987,1758901846504,-150.0,0.00019999,2]
[387829988,1758901846513,-1000.0,0.00019999,2]
[387829989,1758901846522,-998.0,0.0002,2]
[387829990,1758901846532,-1901.02903527,0.0002,2]
[387829991,1758901846542,-367138.80495084,0.0002,2]
[387829992,1758901846551,-576727.68222587,0.0002,2]
[387829995,1758901846674,-544.90783643,0.0002,2]
[387829996,1758901846686,-8838.0,0.0002,2]
[387829997,1758901846803,-1158.9558648,0.0002,2]
[387829998,1758901847119,-124.22442143,0.0002,2]
[387829999,1758901852954,-349.24300055,0.00019899,2]
[387830000,1758901852965,-689.533839,0.00019899,2]
[387830001,1758901852973,-25.59799246,0.0002,2]
[387830002,1758901852983,-478.0120005,0.0002,2]
[387830003,1758901853007,-748.0560267,0.0002,2]
[387830004,1758901853021,-869.29442392,0.0002,2]
[387830005,1758901853033,-399.445445,0.0002,2]
[387830006,1758901853046,-1194.80376201,0.0002,2]
[387830007,1758901853058,-2134.23388315,0.0002,2]
[387830008,1758901853135,-6924.43850967,0.0002,2]
[387830009,1758901853199,-76544.31210975,0.0002,2]
[387830010,1758901853212,-45057.3560579,0.0002,2]
[387830011,1758901853224,-361944.41253554,0.0002,2]
[387830012,1758901853557,-1056639.63912444,0.0002,2]
[387830013,1758901853699,-150247.02457379,0.0002,2]
[387830014,1758901853714,-19719.80000002,0.0002,2]
[387830015,1758901891102,-152.93,0.00018562,2]
[387830016,1758901896783,-47.07,0.00018562,2]
[387830029,1758901960877,249.71,0.000184,2]
[387830030,1758902001123,151.92,9.483e-05,2]
[387830031,1758902110087,62645.0,0.000182,2]
[387830036,1758902209731,5514.0,0.000185,3]
[387830043,1758902273012,-159.19953127,0.00018605,2]
[387830044,1758902332684,5514.0,0.000185,5]
[387830046,1758902368253,5038.0,0.00018,2]
[387830047,1758902369621,-30.23381073,0.00018605,2]
[387830050,1758902381244,5000.0,0.00018,2]
[387830051,1758902395273,500.0,0.00030136,120]
[387830052,1758902395488,500.0,0.00030136,120]
[387830053,1758902395898,500.0,0.00030136,120]
[387830054,1758902396223,500.0,0.00030136,120]
[387830055,1758902396491,500.0,0.00030136,120]
[387830056,1758902396825,500.0,0.00030136,120]
[387830057,1758902397280,500.0,0.00030136,120]
[387830058,1758902397586,500.0,0.00030136,120]
[387830059,1758902397787,500.0,0.00030136,120]
[387830060,1758902398077,500.0,0.00030136,120]
[387830061,1758902398514,500.0,0.00030136,120]
[387830062,1758902398719,500.0,0.00030136,120]
[387830063,1758902398938,500.0,0.00030136,120]
[387830064,1758902399148,500.0,0.00030136,120]
[387830065,1758902399389,500.0,0.00030136,120]
[387830066,1758902399648,500.0,0.00030136,120]
[387830067,1758902400123,221.8,0.00030136,120]
[387830068,1758902403466,-300.0,0.000186,2]
[387830069,1758902407373,-165.25277173,0.000186,2]
[387830070,1758902415181,-272.32077955,0.000186,2]
[387830071,1758902416737,-260.46829116,0.000186,2]
[387830072,1758902417577,776.452303,0.00018507,2]
[387830073,1758902423897,-378.35443093,0.000186,2]
[387830074,1758902424950,-319.33718055,0.000186,2]
[387830075,1758902430607,-153.10796383,0.00018592,2]
[387830076,1758902432160,-298.39269272,0.00018592,2]
[387830077,1758902438473,-32.97934345,0.00018592,2]
[387830078,1758902438497,-119.95065655,0.000186,2]
[387830079,1758902440723,316.479361,0.00018507,2]
[387830080,1758902441042,-391.01477885,0.00018599,2]
[387830081,1758902448038,-108.98522115,0.00018599,2]
[387830082,1758902448065,-70.94821028,0.00018599,2]
[387830083,1758902456834,-160.16363678,0.00018599,2]
[387830084,1758902462598,-188.25197205,0.00018552,2]
[387830085,1758902463708,570.94821,0.00018505,2]
[387830086,1758902465489,-19.30802795,0.00018552,2]
[387830087,1758902465513,-182.29460024,0.00018599,2]
[387830088,1758902469011,-86.5935527,0.00018599,2]
[387830089,1758902469038,-211.80381911,0.00018599,2]
[387830090,1758902471546,-225.47517706,0.00018599,2]
[387830091,1758902473592,-62.72100383,0.00018599,2]
[387830092,1758902473618,-174.23904273,0.00018599,2]
[387830093,1758902477430,-235.62021938,0.00018599,2]
[387830094,1758902479778,-191.05246082,0.00018599,2]
[387830095,1758902479804,-46.16188383,0.00018599,2]
[387830096,1758902487011,-253.83811617,0.00018599,2]
[387830097,1758902487036,-26.75362246,0.00018599,2]
[387830098,1758902489552,-175.04858872,0.00018599,2]
[387830099,1758902494003,-170.83845872,0.00018599,2]
[387830100,1758902498109,-127.3593301,0.00018599,2]
[387830101,1758902498134,-138.34030355,0.00018599,2]
[387830102,1758902502527,-63.26232464,0.00018599,2]
[387830103,1758902502551,-88.18767536,0.00018599,2]
[387830104,1758902504472,-301.22832398,0.00018599,2]
[387830105,1758902505779,-19.48320353,0.00018599,2]
[387830106,1758902505807,-236.96004656,0.00018599,2]
[387830107,1758902505829,-194.84000621,0.00018599,2]
[387830108,1758902510489,-277.86,0.00018599,2]
[387830109,1758902529521,500.0,0.00030136,120]
[387830110,1758902529644,500.0,0.00030136,120]
[387830115,1758902598892,150.0,0.00018518,2]
[387830116,1758902623171,-331.37252119,0.00018524,2]
[387830117,1758902627996,-290.26147562,0.00018524,2]
[387830118,1758902631680,-231.65600319,0.00018524,2]
[387830119,1758902633262,-301.21261627,0.00018524,2]
[387830120,1758902639109,-374.4917866,0.00018524,2]
[387830121,1758902641635,-180.94113145,0.00018524,2]
[387830122,1758902646225,-289.71645429,0.00018524,2]
[387830123,1758902649779,-300.0,0.00018524,2]
[387830124,1758902650207,666.0,0.00018486,3]
[387830125,1758902653724,-310.03834314,0.00018524,2]
[387830126,1758902656285,-152.29628534,0.00018524,2]
[387830127,1758902658920,-299.60242227,0.00018524,2]
[387830128,1758902659232,200.0,0.00018,2]
[387830129,1758902659570,203.836641,0.00016,2]
[387830130,1758902662064,-510.42791566,0.00018524,2]
[387830131,1758902666218,-152.0,0.00018524,2]
[387830132,1758902671329,-160.47,0.00018524,2]
[387830133,1758902674090,-256.78409413,0.00018524,2]
[387830134,1758902678053,-219.00675869,0.00018524,2]
[387830135,1758902681574,-214.69480843,0.00018524,2]
[387830136,1758902686196,-178.45929828,0.00018524,2]
[387830137,1758902688047,-207.0370136,0.00018524,2]
[387830138,1758902691188,-166.0,0.00018523,2]
[387830139,1758902697697,-67.43463588,0.00018523,2]
[387830140,1758902697721,-183.63905224,0.00018524,2]
[387830141,1758902702800,-300.0,0.00018524,2]
[387830142,1758902706853,-169.20189039,0.00018521,2]
[387830143,1758902713299,1000.0,0.00018473,2]
[387830144,1758902713827,-198.5721468,0.00018521,2]
[387830145,1758902714451,150.0,0.00018,2]
[387830146,1758902715790,150.0,0.00018,2]
[387830147,1758902717481,150.0,0.00018,2]
[387830148,1758902718723,155.0,0.00030136,120]
[387830149,1758902720718,-232.22596281,0.00018521,2]
[387830150,1758902725630,150.0,0.00018,2]
[387830151,1758902728797,-338.08,0.00018521,2]
[387830152,1758902730311,150.0,0.00018479,7]
[387830153,1758902733255,-218.56,0.00018521,2]
[387830154,1758902737148,-94.63,0.00018521,2]
[387830155,1758902737171,-61.665697,0.00018522,2]
[387830156,1758902739061,150.0,0.00018,2]
[387830157,1758902739534,151.071196,0.00018402,2]
[387830158,1758902739824,151.071196,0.00018401,2]
[387830159,1758902739875,-211.44022731,0.00018522,2]
[387830160,1758902740156,151.071196,0.00018156,2]
[387830161,1758902740644,151.071196,0.00018156,2]
[387830162,1758902740917,151.071196,0.00017909,2]
[387830163,1758902741179,151.071196,0.00017897,2]
[387830164,1758902741534,151.071196,0.00017859,2]
[387830165,1758902741807,151.071196,0.00017857,2]
[387830166,1758902742059,151.071196,0.00017857,2]
[387830167,1758902743126,151.071196,0.00017852,2]
[387830168,1758902743328,-281.96056462,0.00018522,2]
[387830169,1758902743435,151.071196,0.00017719,2]
[387830170,1758902744431,153.549618,0.00018401,2]
[387830171,1758902744754,153.549618,0.00018156,2]
[387830172,1758902745020,153.549618,0.00017897,2]
[387830173,1758902745308,153.549618,0.00017857,2]
[387830174,1758902745530,153.549618,0.00017852,2]
[387830175,1758902745602,-318.66917041,0.00018522,2]
[387830176,1758902746980,151.565534,0.00018402,2]
[387830177,1758902747344,151.565534,0.00018401,2]
[387830178,1758902747451,151.565534,0.00018156,2]
[387830179,1758902747589,151.565534,0.00017909,2]
[387830180,1758902747758,151.565534,0.00017859,2]
[387830181,1758902748077,151.565534,0.00017857,2]
[387830182,1758902748441,151.565534,0.00017852,2]
[387830183,1758902754405,-153.549618,0.00018522,2]
[387830184,1758902760948,-189.0,0.00018522,2]
[387830185,1758902762365,-188.03441476,0.00018522,2]
[387830186,1758902765801,-271.79831695,0.00018522,2]
[387830187,1758902767125,-323.88199095,0.00018522,2]
[387830188,1758902767146,-201.29634119,0.00018524,2]
[387830189,1758902769017,-225.35920112,0.00018524,2]
[387830190,1758902773670,-263.33360155,0.00018524,2]
[387830191,1758902778235,-250.0,0.00018524,2]
[387830192,1758902783432,-324.71879047,0.00018524,2]
[387830193,1758902786354,-225.26354422,0.00018524,2]
[387830194,1758902793067,-166.47,0.00018524,2]
[387830195,1758902794880,-230.84802611,0.00018524,2]
[387830196,1758902800280,-174.55359508,0.00018524,2]
[387830197,1758902803347,-154.704931,0.00018524,2]
[387830198,1758902807697,-242.64762852,0.00018524,2]
[387830199,1758902809598,-167.878,0.00018524,2]
[387830200,1758902813099,-271.04265294,0.00018524,2]
[387830201,1758902815508,-151.218311,0.00018524,2]
[387830202,1758902817976,-266.0119839,0.00018524,2]
[387830203,1758902821226,-246.24272488,0.00018524,2]
[387830204,1758902824891,-165.72611917,0.00018524,2]
[387830205,1758902829394,-188.64811563,0.00018524,2]
[387830206,1758902831908,-216.21090556,0.00018524,2]
[387830207,1758902837739,-160.59569618,0.00018524,2]
[387830208,1758902841022,-78.67185109,0.00018524,2]
[387830209,1758902841047,-72.54645991,0.00018561,2]
[387830210,1758902847182,-300.0,0.00018561,2]
[387830211,1758902848700,-160.58664086,0.00018561,2]
[387830212,1758902854802,-258.391482,0.00018561,2]
[387830213,1758902856742,-282.03719889,0.00018561,2]
[387830214,1758902858582,-207.39456376,0.00018561,2]
[387830215,1758902861982,-155.554407,0.00018561,2]
[387830216,1758902863679,-262.47758883,0.00018561,2]
[387830217,1758902865723,-224.29814978,0.00018525,2]
[387830218,1758902867735,-268.42870101,0.00018525,2]
[387830220,1758902875036,-157.39993137,0.00018525,2]
[387830221,1758902878041,-242.64762852,0.00018525,2]
[387830222,1758902880122,-191.2042951,0.00018525,2]
[387830223,1758902881694,-267.64440398,0.00018525,2]
[387830224,1758902887362,-167.17621439,0.00018525,2]
[387830225,1758902889883,-180.30200796,0.00018525,2]
[387830226,1758902891886,-162.54624751,0.00018525,2]
[387830227,1758902894247,-236.92973456,0.00018525,2]
[387830228,1758902895845,-168.52132388,0.00018525,2]
[387830229,1758902898558,-178.26103722,0.00018525,2]
[387830230,1758902901819,-154.620612,0.00018525,2]
[387830231,1758902906039,-160.4216525,0.00018525,2]
[387830232,1758902907493,-167.58,0.00018525,2]
[387830233,1758902910134,-161.396481,0.00018525,2]
[387830234,1758902912912,-164.99459651,0.00018525,2]
[387830235,1758902915500,-316.98933442,0.00018525,2]
[387830236,1758902920410,-221.39749421,0.00018525,2]
[387830237,1758902927751,4650.79,0.00018264,2]
[387830238,1758902929669,-296.92560786,0.00018525,2]
[387830239,1758902931214,-155.18994311,0.00018525,2]
[387830240,1758902933556,-239.02746552,0.00018525,2]
[387830241,1758902934079,171.22,9.134e-05,2]
[387830242,1758902934356,171.22,0.00011418,2]
[387830243,1758902934582,171.22,0.00013701,2]
[387830244,1758902935114,171.22,0.00015985,2]
[387830245,1758902935459,171.22,0.00018268,2]
[387830246,1758902936267,-407.79134869,0.00018525,2]
[387830247,1758902939586,-246.61015403,0.00018525,2]
[387830248,1758902942179,-166.74829774,0.00018524,2]
[387830249,1758902947124,-133.25170226,0.00018524,2]
[387830250,1758902947163,-21.45322874,0.00018525,2]
[387830251,1758902951443,-385.47496599,0.00018525,2]
[387830252,1758902955519,-151.605964,0.00018525,2]
[387830253,1758902958185,1824.73,0.00018277,2]
[387830254,1758902959526,-385.07077436,0.00018525,2]
[387830255,1758902961734,-317.09662676,0.00018525,2]
[387830256,1758902963990,-151.605965,0.00018525,2]
[387830257,1758902971076,-152.07767352,0.00018525,2]
[387830258,1758902974361,-204.14539836,0.00018525,2]
[387830259,1758902976147,-158.45315029,0.00018525,2]
[387830260,1758902977717,-203.49382415,0.00018525,2]
[387830261,1758902979761,-234.57658345,0.00018525,2]
[387830262,1758902982336,-277.68063016,0.00018525,2]
[387830263,1758902984021,-310.6326235,0.00018525,2]
[387830264,1758902984778,250.0,0.00018277,2]
[387830265,1758902987721,-449.93106879,0.00018525,2]
[387830266,1758902991892,-152.854275,0.00018525,2]
[387830267,1758902995695,-213.23797888,0.00018525,2]
[387830268,1758902999097,-206.44810198,0.00018525,2]
[387830269,1758903001108,-565.95999574,0.00018525,2]
[387830270,1758903007764,-153.559388,0.00018524,2]
[387830271,1758903008879,-151.0,0.00018524,2]
[387830272,1758903011015,-256.25413612,0.00018524,2]
[387830273,1758903014700,-151.218311,0.00018524,2]
[387830274,1758903015952,-184.2394245,0.00018524,2]
[387830275,1758903019147,-165.88464773,0.00018524,2]
[387830276,1758903023872,-137.84409265,0.00018524,2]
[387830277,1758903023901,-78.01614401,0.00018524,2]
[387830278,1758903027225,-163.06,0.00018524,2]
[387830279,1758903030451,-58.92385599,0.00018524,2]
[387830280,1758903030475,-244.28262085,0.00018525,2]
[387830304,1758903032544,-139.56886457,0.00018525,2]
[387830305,1758903032553,-3177.39118353,0.00018525,2]
[387830306,1758903032565,-595.46155839,0.00018525,2]
[387830308,1758903032577,-672.06598027,0.00018525,2]
[387830311,1758903032591,-531.67165279,0.00018525,2]
[387830312,1758903032606,-681.34804713,0.00018525,2]
[387830313,1758903032618,-358.30667691,0.00018525,2]
[387830314,1758903032630,-312.0,0.00018525,2]
[387830315,1758903032857,-2190.05528275,0.00018525,2]
[387830316,1758903032869,-404.53844161,0.00018525,2]
[387830317,1758903032881,-21670.40697422,0.00018525,2]
[387830318,1758903032891,-147.08000805,0.00018531,2]
[387830319,1758903032903,-3389.27121815,0.00018531,2]
[387830320,1758903032912,-301.01165875,0.00018561,2]
[387830321,1758903032922,-200.0,0.00018561,2]
[387830322,1758903032931,-1959.77999379,0.00018599,2]
[387830323,1758903032942,-207.0,0.00018599,2]
[387830324,1758903032951,-850.0,0.00018599,2]
[387830325,1758903032961,-3184.31588953,0.000186,2]
[387830326,1758903032971,-2580.95910667,0.000186,2]
[387830327,1758903032983,-2419.04089333,0.000186,2]
[387830328,1758903032993,-1167.61,0.00018616,2]
[387830329,1758903033003,-213.55,0.00018645,2]
[387830330,1758903033013,-400.0,0.00018646,2]
[387830331,1758903033023,-2151.0,0.00018691,2]
[387830332,1758903033032,-200.0,0.00018747,2]
[387830333,1758903033044,-391.0,0.000188,2]
[387830334,1758903033054,-307.74,0.0001883,2]
[387830335,1758903033068,-200.0,0.00018855,2]
[387830336,1758903033078,-151.0,0.00018855,2]
[387830337,1758903033090,-151.0,0.00018855,2]
[387830338,1758903033100,-151.0,0.00018855,2]
[387830339,1758903033110,-151.0,0.00018855,2]
[387830340,1758903033122,-200.0,0.00018855,2]
[387830341,1758903033133,-151.0,0.00018855,2]
[387830342,1758903033143,-151.0,0.00018855,2]
[387830343,1758903033153,-151.0,0.00018855,2]
[387830344,1758903033163,-151.0,0.00018855,2]
[387830345,1758903033172,-151.0,0.00018855,2]
[387830346,1758903033182,-151.0,0.00018855,2]
[387830347,1758903033192,-151.0,0.00018855,2]
[387830348,1758903033202,-151.0,0.00018855,2]
[387830349,1758903033211,-151.0,0.00018855,2]
[387830350,1758903033221,-151.0,0.00018855,2]
[387830351,1758903033231,-151.0,0.00018855,2]
[387830352,1758903033241,-151.0,0.00018855,2]
[387830353,1758903033252,-151.0,0.00018855,2]
[387830354,1758903033262,-151.0,0.00018855,2]
[387830355,1758903033273,-151.0,0.00018855,2]
[387830356,1758903033283,-151.0,0.00018855,2]
[387830357,1758903033297,-151.0,0.00018855,2]
[387830358,1758903033307,-151.0,0.00018855,2]
[387830359,1758903033318,-151.0,0.00018855,2]
[387830360,1758903033328,-151.0,0.00018855,2]
[387830361,1758903033338,-10527.74,0.00018867,2]
[387830362,1758903033348,-656.24,0.00018872,2]
[387830363,1758903033358,-391.0,0.00018893,2]
[387830364,1758903033368,-2251.93,0.00018895,2]
[387830365,1758903033378,-446.59,0.00018901,2]
[387830366,1758903033388,-539.17,0.00018908,2]
[387830367,1758903033399,-1687.37,0.00018908,2]
[387830368,1758903033409,-391.0,0.00018917,2]
[387830369,1758903033419,-170.4,0.00018925,2]
[387830370,1758903033429,-200.0,0.00018934,2]
[387830371,1758903033439,-391.0,0.00018947,2]
[387830372,1758903033448,-151.92,0.00018967,2]
[387830373,1758903033458,-391.0,0.00018971,2]
[387830374,1758903033469,-151.0,0.00018977,2]
[387830375,1758903033479,-500.0,0.00018977,2]
[387830376,1758903033489,-500.0,0.00018977,2]
[387830377,1758903033501,-412.35788373,0.00018977,2]
[387830378,1758903033510,-9552.16786547,0.00018977,2]
[387830379,1758903033522,-209.40437684,0.00018977,2]
[387830380,1758903033532,-601.3376128,0.00018977,2]
[387830381,1758903033542,-277.35679052,0.00018977,2]
[387830382,1758903033552,-322.6107,0.00018977,2]
[387830383,1758903033562,-150.0,0.00019,2]
[387830384,1758903033572,-3906.07320409,0.00019022,2]
[387830385,1758903033582,-164.07422845,0.00019031,2]
[387830386,1758903033592,-551.03568793,0.00019031,2]
[387830387,1758903033603,-172.79560336,0.00019031,2]
[387830388,1758903033613,-9905.5980765,0.00019032,2]
[387830389,1758903033623,-391.0,0.00019058,2]
[387830390,1758903033633,-10272.10520533,0.00019087,2]
[387830391,1758903033643,-10652.17309792,0.00019142,2]
[387830392,1758903033653,-1300.16262638,0.00019151,2]
[387830393,1758903033667,-797.823226,0.00019151,2]
[387830394,1758903033679,-300.36077277,0.00019151,2]
[387830395,1758903033691,-474.24337485,0.00019151,2]
[387830396,1758903033701,-156.587,0.00019178,2]
[387830397,1758903033711,-10434.35215926,0.00019197,2]
[387830398,1758903033723,-611.95134329,0.00019197,2]
[387830399,1758903033733,-222.0,0.00019243,2]
[387830400,1758903033744,-3770.74549671,0.00019252,2]
[387830401,1758903033772,-5498.23647969,0.00019252,2]
[387830402,1758903033782,-391.0,0.0001928,2]
[387830403,1758903033792,-150.0,0.000193,2]
[387830404,1758903033803,-200.0,0.00019403,2]
[387830405,1758903033813,-166.71,0.00019475,2]
[387830406,1758903033823,-222.0,0.00019506,2]
[387830407,1758903033834,-222.0,0.00019563,2]
[387830408,1758903033844,-213.55,0.00019578,2]
[387830409,1758903033854,-222.0,0.0001966,2]
[387830410,1758903033864,-952.58946217,0.0001969,2]
[387830411,1758903033875,-37947.21,0.00019726,2]
[387830412,1758903033885,-1425.0,0.00019734,2]
[387830413,1758903033895,-222.0,0.00019746,2]
[387830414,1758903033906,-3549.2842,0.0001975,2]
[387830415,1758903033916,-1425.0,0.00019778,2]
[387830416,1758903033926,-568.03165249,0.00019798,2]
[387830417,1758903033936,-1254.08784,0.000198,2]
[387830418,1758903033947,-150.0,0.00019804,2]
[387830419,1758903033958,-222.0,0.00019811,2]
[387830420,1758903033978,-500.0,0.00019836,2]
[387830421,1758903033989,-188.08424862,0.00019841,2]
[387830422,1758903034002,-3663.55548977,0.00019841,2]
[387830423,1758903034013,-228.60833411,0.00019843,2]
[387830424,1758903034024,-277.01931575,0.00019846,2]
[387830425,1758903034035,-4991.42056721,0.0001985,2]
[387830426,1758903034051,-5234.92222476,0.0001985,2]
[387830515,1758903039270,-27970.07838131,0.0001985,2]
[387830517,1758903039280,-1268.092,0.0001985,2]
[387830519,1758903039290,-787.0,0.0001985,2]
[387830522,1758903039299,-2043.0,0.0001985,2]
[387830524,1758903039308,-3459.474,0.0001985,2]
[387830526,1758903039319,-1583.0,0.0001985,2]
[387830528,1758903039328,-569.0,0.0001985,2]
[387830530,1758903039337,-603.0,0.0001985,2]
[387830532,1758903039346,-1305.0,0.0001985,2]
[387830534,1758903039356,-814.0,0.0001985,2]
[387830536,1758903039365,-899.0,0.0001985,2]
[387830538,1758903039375,-1179.0,0.0001985,2]
[387830540,1758903039384,-4232.0,0.0001985,2]
[387830542,1758903039393,-4179.0,0.0001985,2]
[387830543,1758903039403,-6228.0,0.0001985,2]
[387830546,1758903039412,-18905.0,0.0001985,2]
[387830548,1758903039422,-728.0,0.0001985,2]
[387830550,1758903039432,-188.08424862,0.00019853,2]
[387830551,1758903039441,-7275.52221267,0.00019859,2]
[387830553,1758903039451,-442.46421516,0.00019863,2]
[387830556,1758903039460,-169.71965907,0.00019869,2]
[387830558,1758903039470,-188.08424862,0.00019871,2]
[387830560,1758903039479,-442.46421516,0.00019873,2]
[387830561,1758903039488,-188.08424862,0.00019877,2]
[387830563,1758903039498,-169.71965907,0.00019879,2]
[387830565,1758903039508,-442.46421516,0.00019881,2]
[387830567,1758903039519,-235.88,0.00019886,2]
[387830569,1758903039528,-228.60833411,0.00019889,2]
[387830571,1758903039537,-159.83853021,0.0001989,2]
[387830573,1758903039547,-277.01931575,0.00019891,2]
[387830575,1758903039557,-169.71965907,0.00019891,2]
[387830578,1758903039566,-3663.55548977,0.00019892,2]
[387830580,1758903039576,-277.01931575,0.00019894,2]
[387830582,1758903039585,-4695.58048682,0.00019897,2]
[387830584,1758903039594,-8605.7201,0.00019898,2]
[387830585,1758903039603,-10613.19095086,0.00019898,2]
[387830599,1758903039719,-747.00265292,0.00019898,2]
[387830601,1758903039731,-32864.10939622,0.00019898,2]
[387830603,1758903039741,-2976.464,0.00019898,2]
[387830605,1758903039751,-169.87895185,0.00019899,2]
[387830607,1758903039761,-5000.0,0.000199,2]
[387830609,1758903039770,-38196.42117328,0.000199,2]
[387830611,1758903039780,-161.07715292,0.000199,2]
[387830613,1758903039789,-229.62215638,0.000199,2]
[387830615,1758903039799,-3663.55548977,0.00019901,2]
[387830617,1758903039808,-277.01931575,0.00019901,2]
[387830619,1758903039819,-442.46421516,0.00019902,2]
[387830621,1758903039828,-442.46421516,0.00019906,2]
[387830623,1758903039838,-188.08424862,0.00019907,2]
[387830625,1758903039848,-3663.55548977,0.00019907,2]
[387830628,1758903039857,-159.83853021,0.00019909,2]
[387830630,1758903039867,-228.60833411,0.0001992,2]
[387830633,1758903039876,-38196.42117328,0.00019921,2]
[387830634,1758903039885,-2325.498,0.00019924,2]
[387830635,1758903039895,-442.46421516,0.00019927,2]
[387830636,1758903039905,-160.103,0.00019931,2]
[387830637,1758903039914,-38196.42117328,0.00019931,2]
[387830638,1758903039924,-169.71965907,0.00019933,2]
[387830639,1758903039934,-222.0,0.00019934,2]
[387830640,1758903039944,-3663.55548977,0.00019936,2]
[387830642,1758903039954,-228.60833411,0.00019939,2]
[387830644,1758903039963,-3663.55548977,0.00019941,2]
[387830646,1758903039973,-159.83853021,0.00019943,2]
[387830648,1758903039983,-3663.55548977,0.00019951,2]
[387830650,1758903039992,-159.83853021,0.00019951,2]
[387830652,1758903040001,-1425.0,0.00019952,2]
[387830654,1758903040011,-38196.42117328,0.00019954,2]
[387830657,1758903040020,-442.46421516,0.00019955,2]
[387830659,1758903040030,-277.01931575,0.00019961,2]
[387830661,1758903040040,-277.01931575,0.00019963,2]
[387830663,1758903040052,-228.60833411,0.00019964,2]
[387830665,1758903040062,-169.71965907,0.00019967,2]
[387830667,1758903040072,-38196.42117328,0.0001997,2]
[387830669,1758903040082,-159.83853021,0.00019972,2]
[387830671,1758903040093,-501.75011636,0.00019973,2]
[387830673,1758903040103,-169.46566074,0.00019973,2]
[387830675,1758903040112,-400.0,0.00019973,2]
[387830677,1758903040124,-500.0,0.00019973,2]
[387830679,1758903040134,-500.0,0.00019973,2]
[387830681,1758903040143,-500.0,0.00019973,2]
[387830683,1758903040152,-500.0,0.00019973,2]
[387830685,1758903040161,-500.0,0.00019973,2]
[387830687,1758903040170,-500.0,0.00019973,2]